bitfinex/quotes_ETHUSD_20260305
["timestamp","ask_amount","ask_price","bid_price","bid_amount"]
[1772717959169,2.92982179,2115.0,2113.6,4.73124848]
[1772717959577,2.92982179,2115.0,2113.6,1.18281604]
[1772717959782,2.92982179,2115.0,2113.7,2.69455748]
[1772717960975,2.92982179,2115.0,2113.5,1.2281]
[1772717960976,2.92982179,2114.8,2113.5,1.2281]
[1772717961697,2.92982179,2114.8,2113.5,0.0011]
[1772717962989,2.92982179,2114.6,2113.5,0.0011]
[1772717963196,2.92982179,2114.4,2113.5,0.0011]
[1772717964314,2.92982179,2114.4,2113.7,0.0011]
[1772717965182,2.92982179,2114.2,2113.5,0.0011]
[1772717967231,2.84798506,2113.8,2113.5,0.0011]
[1772717967520,2.84798506,2113.8,2113.1,0.16834479]
[1772717968219,2.84798506,2113.8,2112.8,0.0011]
[1772717969326,2.84798506,2113.6,2112.8,0.0011]
[1772717970145,2.84798506,2113.6,2112.5,0.0011]
[1772717970323,2.84798506,2113.5,2111.8,3.85393033]
[1772717970518,2.84798506,2113.4,2111.8,2.6701383]
[1772717970752,2.84798506,2113.4,2111.7,1.18385601]
[1772717970753,2.84798506,2113.1,2111.7,1.18385601]
[1772717971038,2.84798506,2113.1,2111.8,1.18381457]
[1772717971217,2.84798506,2112.9,2111.7,4.73550767]
[1772717971539,2.84798506,2112.8,2111.7,7.40106]
[1772717971839,2.84798506,2112.8,2111.6,1.3430755]
[1772717971840,2.84798506,2112.8,2111.6,1.34309247]
[1772717972942,2.84798506,2112.8,2111.7,2.65970514]
[1772717973749,4.03102499,2113.2,2111.9,2.65786404]
[1772717974343,1.18303993,2113.2,2111.9,2.65786404]
[1772717974545,2.68502357,2113.3,2111.9,2.65786404]
[1772717975241,1.18302357,2113.3,2111.9,2.65786404]
[1772717977536,1.1828407,2113.6,2112.3,2.64808129]
[1772717977937,0.001,2113.0,2112.3,2.64808129]
[1772717978439,2.84798506,2113.6,2112.3,2.70973882]
[1772717978855,2.84798506,2113.6,2112.3,2.64420282]
[1772717979794,4.03085707,2113.5,2112.4,3.82198561]
[1772717980287,4.03085707,2113.5,2112.5,2.63849764]
[1772717980288,2.84798506,2113.4,2112.5,2.63849764]
[1772717980665,2.84798506,2113.4,2112.4,1.18348797]
[1772717981577,2.84798506,2113.4,2112.1,0.0011]
[1772717982086,2.84798506,2113.2,2112.1,0.0011]
[1772717983960,2.84798506,2113.0,2112.1,0.0011]
[1772717987104,1.18320791,2112.9,2112.1,0.0011]
[1772717987266,4.03119297,2112.9,2112.1,0.0011]
[1772717987789,2.84798506,2112.8,2112.1,0.0011]
[1772717988799,2.64755949,2112.7,2112.1,0.0011]
[1772717989524,3.83093542,2112.6,2112.1,0.0011]
[1772717990300,1.18337593,2112.6,2112.1,0.0011]
[1772717991802,2.68228446,2112.8,2112.1,2.60571131]
[1772717992925,1.18328446,2112.8,2112.1,2.60571131]
[1772717993918,7.38061515,2112.9,2112.1,2.60571131]
[1772717994219,2.64755949,2112.8,2112.1,2.60571131]
[1772717994423,2.64755949,2112.8,2112.1,3.78936502]
[1772717994812,1.18420791,2113.0,2112.2,2.59640003]
[1772717994813,1.18419367,2113.0,2112.2,2.59640003]
[1772717995819,2.64755949,2112.9,2112.1,2.55972466]
[1772717996406,2.64755949,2112.9,2112.1,0.0011]
[1772717997014,2.64755949,2112.9,2112.1,1.18475051]
[1772717997803,2.64755949,2112.7,2112.1,0.0011]
[1772717998216,1.18326391,2112.8,2112.1,0.0011]
[1772717998217,1.18326391,2112.8,2112.1,2.58939987]
[1772718000211,4.73305566,2112.9,2112.2,1.18360003]
[1772718000411,0.001,2113.0,2112.3,2.58292074]
[1772718000612,1.18289877,2113.5,2112.3,2.58192074]
[1772718000830,1.18289877,2113.5,2112.4,2.57927904]
[1772718001709,5.32841232,2113.6,2112.4,2.57927904]
[1772718001910,1.498,2113.6,2112.4,2.57927904]
[1772718002155,0.001,2112.8,2112.4,2.57927904]
[1772718002310,1.498,2113.6,2112.6,2.57661031]
[1772718002513,5.32837988,2113.6,2112.6,2.57661031]
[1772718002728,2.64755949,2113.5,2112.6,2.57661031]
[1772718002964,2.64755949,2113.5,2112.6,2.57398726]
[1772718003452,1.498,2113.6,2112.6,2.57398726]
[1772718003621,2.68082621,2113.6,2112.6,2.57398726]
[1772718004542,2.64755949,2113.7,2112.8,2.57135104]
[1772718006848,1.18273624,2113.8,2113.0,2.56343526]
[1772718008254,1.18265659,2113.9,2113.0,2.56343526]
[1772718008552,2.64755949,2114.0,2113.0,2.56343526]
[1772718008553,1.18262468,2114.0,2113.0,2.56343526]
[1772718008923,2.67957208,2114.1,2113.2,2.55819916]
[1772718009647,1.18252557,2114.2,2113.2,2.55819916]
[1772718009952,1.18242981,2114.3,2113.2,2.55819916]
[1772718010157,1.18241377,2114.4,2113.2,2.55819916]
[1772718010540,2.64755949,2114.3,2113.2,2.55559214]
[1772718010849,4.72927769,2114.5,2113.4,2.55299678]
[1772718011151,2.64755949,2114.4,2113.4,2.55299678]
[1772718012928,1.18242444,2114.3,2113.5,3.73068611]
[1772718013336,3.82998393,2114.3,2113.5,3.73068611]
[1772718014750,2.64855949,2114.2,2113.4,1.18288642]
[1772718014952,3.83009579,2114.1,2113.3,4.73178522]
[1772718015254,3.83009579,2114.1,2113.1,1.18309592]
[1772718015255,2.64755949,2114.0,2113.1,1.18309592]
[1772718015754,2.64755949,2114.0,2113.2,2.54006543]
[1772718015964,1.18352384,2114.2,2113.2,2.54006543]
[1772718016327,2.64755949,2114.1,2113.2,2.54006543]
[1772718016970,1.18259224,2114.0,2113.3,1.18298395]
[1772718017755,3.83009997,2114.1,2113.3,3.71796522]
[1772718018656,1.18254048,2114.1,2113.4,2.53498127]
[1772718020063,2.8450206,2114.2,2113.5,1.18287201]
[1772718021863,2.8450206,2114.2,2113.5,3.71000041]
[1772718022357,0.001,2114.2,2113.6,2.52460595]
[1772718022865,2.8450206,2114.2,2113.6,2.52460595]
[1772718023052,2.8450206,2114.2,2113.3,3.70502599]
[1772718023053,2.8440206,2114.1,2113.3,3.70502599]
[1772718023257,2.8440206,2114.0,2112.8,2.52319706]
[1772718023427,2.8440206,2113.9,2112.8,0.0011]
[1772718024161,2.8440206,2113.7,2112.8,0.0011]
[1772718025767,2.8440206,2113.7,2112.8,2.51568388]
[1772718026127,1.18281604,2113.6,2112.9,1.18320791]
[1772718026545,4.02682636,2113.7,2113.0,0.0011]
[1772718027160,2.86799769,2113.6,2113.0,0.0011]
[1772718028036,1.18280576,2113.7,2113.0,0.0011]
[1772718028239,7.59884827,2113.8,2113.0,0.0011]
[1772718029636,7.59884827,2113.8,2113.0,2.50801483]
[1772718029637,1.18270413,2113.8,2113.0,2.50801483]
[1772718029839,4.05163437,2114.0,2113.0,2.50801483]
[1772718030240,0.001,2114.0,2113.2,2.50444856]
[1772718031468,4.05159459,2114.0,2113.2,2.50444856]
[1772718032348,4.05159459,2114.0,2113.3,1.18298395]
[1772718033170,2.86799769,2113.9,2113.0,1.18420954]
[1772718034152,2.86799769,2113.9,2113.1,2.49467278]
[1772718034355,1.18270413,2113.8,2113.2,1.18303993]
[1772718034548,1.18270413,2113.8,2113.1,3.67772681]
[1772718035068,4.05067106,2113.9,2113.1,3.67529683]
[1772718035972,1.18363092,2114.0,2113.2,2.48981749]
[1772718036158,2.86799769,2113.9,2113.2,2.48981749]
[1772718036360,2.86799769,2113.9,2113.3,1.18298395]
[1772718036783,1.18363092,2114.0,2113.3,1.18298395]
[1772718037283,2.86799769,2113.9,2113.1,4.73220281]
[1772718038255,0.001,2113.7,2113.1,4.73220281]
[1772718038785,0.001,2113.7,2113.0,1.18424578]
[1772718038786,2.86899769,2113.7,2113.0,1.18424578]
[1772718039777,2.86899769,2113.7,2113.0,0.0011]
[1772718040285,2.86899769,2113.7,2112.8,0.0011]
[1772718040655,2.86899769,2113.7,2112.5,0.0011]
[1772718040656,2.86799769,2113.5,2112.5,0.0011]
[1772718040859,3.93540504,2113.6,2112.5,0.0011]
[1772718040860,2.86799769,2113.3,2112.5,0.0011]
[1772718042693,2.86799769,2113.1,2112.5,0.0011]
[1772718044390,1.18303993,2113.2,2112.5,0.0011]
[1772718044595,4.35899769,2113.4,2112.5,0.0011]
[1772718044765,1.18298395,2113.3,2112.5,2.47294556]
[1772718045671,2.86799769,2113.2,2112.5,0.0011]
[1772718046792,1.18309592,2113.1,2112.5,0.0011]
[1772718047191,2.86799769,2113.0,2112.5,0.0011]
[1772718047685,1.18309592,2113.1,2112.5,0.0011]
[1772718048093,2.86799769,2113.1,2112.5,0.0011]
[1772718048298,1.18308432,2113.2,2112.5,0.0011]
[1772718048460,4.05108201,2113.2,2112.5,0.0011]
[1772718048661,2.86799769,2113.1,2112.5,0.0011]
[1772718049902,1.18308432,2113.2,2112.5,0.0011]
[1772718050098,1.18308432,2113.2,2112.7,0.0011]
[1772718050482,2.83879173,2113.1,2112.7,0.0011]
[1772718051280,1.18315191,2113.0,2112.7,0.0011]
[1772718052286,4.02192816,2113.1,2112.7,0.0011]
[1772718053179,1.18313643,2113.1,2112.7,0.0011]
[1772718053399,4.02177568,2113.3,2112.7,0.0011]
[1772718054205,2.83879173,2113.2,2112.7,0.0011]
[1772718055477,4.02185921,2113.2,2112.7,0.0011]
[1772718055811,2.6739638,2113.4,2112.7,0.0011]
[1772718056171,5.51275553,2113.4,2112.7,0.0011]
[1772718057275,1.491,2113.4,2112.7,2.44260701]
[1772718057508,2.67393738,2113.4,2112.7,2.44260701]
[1772718057717,2.67393738,2113.4,2112.8,3.62477092]
[1772718058276,1.491,2113.4,2112.9,2.43922234]
[1772718058481,2.67395066,2113.4,2112.8,1.18326391]
[1772718058676,1.491,2113.4,2112.8,3.62021546]
[1772718058911,1.491,2113.4,2112.8,1.18326391]
[1772718058912,2.83879173,2113.3,2112.8,1.18326391]
[1772718059581,2.83879173,2113.6,2112.9,2.43695155]
[1772718059814,2.83879173,2113.6,2113.0,1.18315191]
[1772718060106,1.18376038,2113.7,2113.0,3.61783936]
[1772718060282,1.18377105,2113.7,2113.0,3.61783936]
[1772718060480,0.001,2113.7,2113.0,3.61783936]
[1772718060906,2.83879173,2113.6,2112.7,1.18437612]
[1772718061098,2.83879173,2113.4,2112.7,1.18440875]
[1772718061890,0.001,2113.7,2112.8,2.43017687]
[1772718062090,0.001,2113.7,2113.0,2.43017687]
[1772718062397,1.18376992,2113.7,2113.0,2.43017687]
[1772718062723,1.18376992,2113.7,2112.7,3.61458562]
[1772718062724,2.83879173,2113.6,2112.7,3.61458562]
[1772718063604,2.83979173,2113.5,2112.7,3.61458562]
[1772718064007,2.83979173,2113.5,2112.8,2.425662]
[1772718064008,0.001,2113.5,2112.8,2.425662]
[1772718065506,0.001,2113.7,2112.7,1.18440875]
[1772718065507,0.001,2113.7,2112.9,2.42241402]
[1772718066120,0.001,2113.7,2113.1,2.42020383]
[1772718066297,0.001,2113.7,2113.2,2.42020383]
[1772718068402,0.001,2113.7,2113.3,3.59871456]
[1772718068940,0.001,2113.7,2113.4,2.41351108]
[1772718069597,0.001,2114.0,2113.4,2.41351108]
[1772718070525,0.001,2114.0,2113.5,3.59418962]
[1772718074328,0.001,2114.2,2113.5,3.59418962]
[1772718074502,2.83979173,2114.2,2113.5,3.59418962]
[1772718075425,4.02227444,2114.2,2113.5,3.59418962]
[1772718076431,1.18348271,2114.2,2113.6,2.39818647]
[1772718076727,0.001,2114.2,2113.6,2.39818647]
[1772718077528,0.001,2114.2,2113.8,2.39599926]
[1772718077732,1.488,2114.9,2114.0,2.39499926]
[1772718077733,4.02190925,2114.9,2114.0,2.39499926]
[1772718078228,0.001,2114.9,2114.0,2.39499926]
[1772718078426,0.001,2114.9,2113.9,1.214]
[1772718078427,0.001,2114.9,2114.2,2.39284872]
[1772718079419,0.001,2114.9,2114.4,2.3905705]
[1772718079620,0.001,2114.9,2114.5,1.215]
[1772718080131,0.001,2114.9,2114.5,3.60340789]
[1772718081434,0.001,2114.9,2114.5,2.38840789]
[1772718081649,0.001,2114.9,2114.4,1.18233593]
[1772718081820,2.63382794,2114.8,2114.0,1.18259224]
[1772718082018,2.63382794,2114.8,2113.9,3.56669445]
[1772718082213,2.63382794,2114.8,2113.9,1.18260535]
[1772718082416,2.63382794,2114.8,2113.4,4.78301708]
[1772718084261,2.63382794,2114.8,2113.4,2.39892798]
[1772718084262,2.63382794,2114.6,2113.4,2.39892798]
[1772718086353,2.66862393,2114.4,2113.4,2.39892798]
[1772718086515,2.66862393,2114.4,2113.4,4.7743262]
[1772718086713,2.66862393,2114.4,2113.5,2.37539822]
[1772718087516,2.66862393,2114.4,2113.6,0.0011]
[1772718088328,1.18242444,2114.3,2113.6,0.0011]
[1772718088527,2.66862393,2114.2,2113.6,0.0011]
[1772718091232,1.1825363,2114.1,2113.6,0.0011]
[1772718092053,3.85116023,2114.1,2113.6,0.0011]
[1772718093746,2.47062393,2114.0,2113.6,0.0011]
[1772718095345,2.47062393,2114.0,2113.4,0.0011]
[1772718095739,2.47062393,2114.0,2113.1,0.0011]
[1772718095740,2.66862393,2113.8,2113.1,0.0011]
[1772718096141,2.66862393,2113.7,2113.1,0.0011]
[1772718097348,2.66862393,2113.5,2113.1,0.0011]
[1772718097849,1.18292798,2113.4,2113.1,0.0011]
[1772718098061,1.18290232,2113.5,2113.1,0.0011]
[1772718099226,8.88100429,2113.6,2113.1,0.0011]
[1772718099227,1.18259224,2114.0,2113.1,2.55498352]
[1772718099427,6.2103326,2114.5,2113.2,2.55388352]
[1772718099428,2.66862393,2114.4,2113.2,2.55388352]
[1772718100020,1.18242444,2114.3,2113.4,2.55196003]
[1772718100840,2.66336494,2114.5,2113.4,2.55196003]
[1772718101167,0.001,2114.7,2113.4,2.55196003]
[1772718101338,0.001,2114.7,2113.3,1.18298395]
[1772718101339,0.001,2114.7,2113.6,2.55006191]
[1772718101537,1.1832064,2114.7,2113.8,2.55006191]
[1772718101832,0.001,2114.7,2113.8,2.55006191]
[1772718102025,0.001,2114.7,2114.0,2.54814441]
[1772718102639,0.001,2114.7,2113.9,1.18264818]
[1772718102640,2.66962393,2114.7,2113.9,1.18264818]
[1772718103041,2.66962393,2114.7,2113.9,3.728871]
[1772718103642,0.001,2114.7,2114.0,2.54622282]
[1772718104129,0.001,2114.7,2114.1,1.1825363]
[1772718105945,0.001,2114.7,2114.1,3.7230289]
[1772718107061,0.001,2114.7,2114.2,2.53858274]
[1772718108432,0.001,2114.7,2114.3,1.18242444]
[1772718108656,0.001,2114.7,2114.3,3.71910328]
[1772718109035,0.001,2114.7,2114.4,2.53482545]
[1772718111344,0.001,2114.7,2114.5,1.1823126]
[1772718112445,0.001,2114.7,2114.4,1.18232659]
[1772718112799,0.001,2114.7,2109.1,4.727]
[1772718112800,2.61201494,2114.7,2113.8,2.52915025]
[1772718113063,2.61201494,2114.7,2113.9,1.215]
[1772718113467,3.79327163,2114.6,2114.0,1.18259224]
[1772718113772,0.001,2114.5,2114.0,1.18259224]
[1772718113967,0.001,2114.5,2114.1,2.525381]
[1772718115570,0.001,2114.5,2114.2,1.18248037]
[1772718118095,1.18207228,2115.0,2114.3,2.5178792]
[1772718118260,1.18207228,2115.0,2114.3,3.7348792]
[1772718118458,1.18207228,2115.0,2114.4,2.5168792]
[1772718118662,3.79308722,2115.0,2114.4,2.5168792]
[1772718119001,2.61101494,2114.9,2114.2,2.51504455]
[1772718119161,2.61101494,2114.9,2114.1,2.39949943]
[1772718119362,2.61101494,2114.9,2114.1,4.91454398]
[1772718119991,3.79314586,2114.9,2114.1,4.91454398]
[1772718120194,1.1820094,2115.1,2114.2,2.51317019]
[1772718120362,3.79302434,2115.1,2114.2,2.51317019]
[1772718120693,2.61101494,2115.0,2114.1,1.18249943]
[1772718121200,3.79297903,2115.2,2114.2,2.51132699]
[1772718121362,4.72760672,2115.3,2114.4,2.51132699]
[1772718121363,1.18189033,2115.3,2114.4,2.51132699]
[1772718121693,5.27086921,2115.4,2114.4,2.51132699]
[1772718121892,2.61101494,2115.4,2114.4,2.51132699]
[1772718122093,1.18171722,2115.6,2114.6,2.50948112]
[1772718122094,2.61101494,2115.6,2114.6,2.50948112]
[1772718122479,1.18158616,2115.8,2114.6,2.50948112]
[1772718123159,1.18158616,2115.8,2114.5,1.1823126]
[1772718123160,2.61101494,2115.9,2114.8,2.50762917]
[1772718123386,3.79254892,2115.9,2115.0,2.50762917]
[1772718123961,3.79254892,2115.9,2115.1,3.68774721]
[1772718124375,2.61101494,2115.8,2115.1,1.18197721]
[1772718125991,2.61101494,2116.0,2115.3,1.18186545]
[1772718126693,2.61101494,2116.3,2115.5,2.50209184]
[1772718127088,2.61101494,2116.3,2115.3,1.18186545]
[1772718127292,2.61101494,2116.3,2115.3,2.40086545]
[1772718127681,0.001,2115.7,2115.3,2.40086545]
[1772718128078,0.001,2115.7,2115.3,1.18186545]
[1772718128292,0.001,2115.7,2115.3,2.40086545]
[1772718129110,0.001,2115.7,2115.3,4.8974579]
[1772718129409,3.79242314,2116.2,2115.4,2.49659245]
[1772718129978,1.1812841,2116.4,2115.4,2.49659245]
[1772718130183,3.79229904,2116.4,2115.6,2.49381025]
[1772718130412,2.61101494,2116.3,2115.6,2.49381025]
[1772718130721,2.61101494,2116.3,2115.5,2.40075372]
[1772718131210,2.61101494,2116.3,2115.5,4.89274026]
[1772718132190,1.18136282,2116.2,2115.5,4.89274026]
[1772718132389,3.79233181,2116.3,2115.5,4.89274026]
[1772718132787,2.61101494,2116.2,2115.5,4.89274026]
[1772718132992,4.12867652,2118.0,2115.7,2.48835683]
[1772718133290,4.12867652,2118.0,2115.5,2.40075372]
[1772718133291,2.61101494,2117.4,2116.1,2.48835683]
[1772718133488,2.61101494,2117.4,2116.0,0.065536]
[1772718133489,2.61101494,2117.4,2116.3,2.48835683]
[1772718133813,2.61101494,2117.4,2116.0,2.55701835]
[1772718134012,2.61101494,2117.4,2116.3,1.219]
[1772718135202,2.61101494,2117.2,2116.3,2.40028942]
[1772718136015,2.61101494,2117.9,2116.4,2.48787178]
[1772718136216,2.61101494,2117.5,2116.3,2.40028942]
[1772718136418,1.18035882,2118.2,2116.3,2.40028942]
[1772718136419,2.61101494,2118.2,2116.8,2.48787178]
[1772718136587,2.61101494,2118.2,2117.0,2.48787178]
[1772718136917,5.04791207,2118.5,2116.9,1.284536]
[1772718136918,2.93845236,2118.5,2117.4,2.48607342]
[1772718137118,2.93845236,2118.5,2117.6,2.48607342]
[1772718137340,2.61101494,2118.6,2117.6,1.18054747]
[1772718138190,2.61101494,2118.6,2117.6,3.66481449]
[1772718138390,2.61101494,2118.6,2117.7,2.48426702]
[1772718139220,1.1799449,2118.8,2117.8,3.66296838]
[1772718139524,2.51213394,2118.8,2117.9,2.48249809]
[1772718139723,2.51213394,2118.8,2117.7,1.1804836]
[1772718139894,2.51213394,2118.8,2117.6,1.35646911]
[1772718140088,2.51213394,2118.8,2117.5,1.18060628]
[1772718140828,0.001,2120.1,2117.8,2.73206518]
[1772718141011,2.51213394,2120.3,2118.7,2.73206518]
[1772718141211,2.51213394,2120.3,2118.8,1.17991315]
[1772718141212,2.51213394,2120.1,2118.8,1.17991315]
[1772718141392,2.51213394,2120.1,2118.6,0.16922615]
[1772718141595,2.51213394,2120.1,2118.1,2.73206518]
[1772718141922,1.17913404,2120.2,2118.1,0.1692661]
[1772718141923,2.51213394,2119.6,2118.1,0.1692661]
[1772718142128,2.51213394,2119.6,2118.1,2.90133128]
[1772718143198,2.51213394,2119.6,2118.2,1.18024737]
[1772718143199,2.51213394,2119.4,2118.2,1.18024737]
[1772718143825,2.51213394,2119.4,2118.1,7.62232079]
[1772718143826,2.51213394,2119.4,2118.1,1.34953682]
[1772718144416,2.51213394,2119.3,2118.2,2.73206518]
[1772718144723,2.51213394,2119.3,2118.1,1.34953682]
[1772718145423,3.69180665,2119.3,2118.1,1.34953682]
[1772718145628,3.69177678,2119.3,2118.1,4.081602]
[1772718145794,2.51213394,2119.2,2118.1,1.34953682]
[1772718146642,2.51213394,2119.2,2118.1,4.02166214]
[1772718146845,2.68580213,2120.5,2118.2,2.88714631]
[1772718147119,2.68580213,2120.5,2118.3,2.67212532]
[1772718147298,2.68580213,2120.3,2118.5,2.73766132]
[1772718148030,2.68580213,2120.1,2118.5,2.73766132]
[1772718149824,2.68580213,2120.1,2118.7,2.67212532]
[1772718149825,2.68580213,2120.0,2118.7,2.67212532]
[1772718151612,2.68580213,2119.8,2118.6,1.18002454]
[1772718151852,2.68580213,2119.6,2118.3,1.18017128]
[1772718152142,2.68580213,2119.5,2118.3,1.18017128]
[1772718152934,2.68580213,2119.5,2118.3,3.8522966]
[1772718153142,2.68580213,2119.5,2118.2,4.72087041]
[1772718153143,2.68580213,2119.5,2118.0,1.18035882]
[1772718153915,2.68580213,2119.3,2118.1,2.67212532]
[1772718154328,2.68580213,2119.3,2118.0,1.18035882]
[1772718155438,2.68580213,2119.2,2118.0,3.85248414]
[1772718156139,3.86554731,2119.2,2118.0,3.85248414]
[1772718156931,1.17974518,2119.2,2118.0,3.85248414]
[1772718157124,3.86554731,2119.2,2118.1,2.67212532]
[1772718157325,2.68580213,2119.2,2118.1,2.67212532]
[1772718157834,4.71766744,2119.7,2118.1,2.67212532]
[1772718157835,2.68580213,2119.6,2118.1,2.67212532]
[1772718158059,2.68580213,2119.6,2118.3,2.67212532]
[1772718158935,1.457,2119.8,2118.3,2.67212532]
[1772718159165,0.001,2119.8,2118.3,2.67212532]
[1772718159336,0.001,2119.8,2118.5,2.67212532]
[1772718160137,0.001,2119.8,2118.7,2.67212532]
[1772718160743,0.001,2119.8,2118.9,2.67212532]
[1772718162266,0.001,2119.8,2119.1,2.67212532]
[1772718163474,3.00363014,2120.6,2119.1,2.67212532]
[1772718163671,3.00363014,2120.6,2119.0,1.17980179]
[1772718163672,2.68580213,2121.0,2119.3,2.67212532]
[1772718163966,2.68580213,2121.0,2119.0,1.17980179]
[1772718163967,2.68580213,2120.8,2119.0,3.85192711]
[1772718164150,2.68580213,2120.6,2119.0,3.85192711]
[1772718164556,2.68580213,2120.6,2119.1,2.73766132]
[1772718165068,2.68580213,2120.6,2119.1,2.67212532]
[1772718166152,2.68580213,2120.6,2119.3,2.67212532]
[1772718166358,3.86471681,2120.6,2119.3,2.67212532]
[1772718166557,0.001,2119.9,2119.3,2.67212532]
[1772718166778,3.86471805,2120.6,2119.3,2.67212532]
[1772718167084,3.86471805,2120.6,2119.2,1.17969044]
[1772718167085,2.68580213,2120.5,2119.2,1.17969044]
[1772718167272,2.68580213,2120.4,2118.9,1.17985747]
[1772718167589,2.68580213,2120.4,2118.3,0.0011]
[1772718167590,2.68580213,2120.2,2118.5,1.18008024]
[1772718167882,2.68580213,2119.8,2118.5,1.18008024]
[1772718168059,1.444,2119.8,2118.5,1.18008024]
[1772718168385,2.68580213,2119.7,2118.5,1.18008024]
[1772718168887,6.49324616,2119.9,2118.5,2.59808126]
[1772718169197,6.91703289,2120.7,2118.4,4.72032098]
[1772718169198,2.66738144,2120.6,2118.7,2.59808126]
[1772718169356,2.66738144,2120.4,2118.7,2.59808126]
[1772718170982,3.84645987,2120.3,2118.9,2.59808126]
[1772718171493,2.66738144,2120.2,2118.9,2.59808126]
[1772718173024,3.84651711,2120.2,2119.0,3.77788305]
[1772718173228,3.84651711,2120.2,2119.1,2.59808126]
[1772718173429,2.66738144,2120.2,2119.1,2.59808126]
[1772718174129,2.66738144,2120.2,2118.7,1.17996884]
[1772718174130,2.66738144,2120.1,2118.7,1.17996884]
[1772718174321,2.66738144,2119.8,2118.7,1.17996884]
[1772718174519,2.66738144,2119.7,2118.4,1.18013595]
[1772718175027,3.84684926,2119.6,2118.4,3.77821721]
[1772718175426,2.66738144,2119.5,2118.4,3.77821721]
[1772718175626,2.66738144,2119.5,2118.5,2.59808126]
[1772718176207,1.17942596,2119.7,2118.5,2.59808126]
[1772718176424,3.8468074,2119.7,2118.5,2.59808126]
[1772718177518,2.66738144,2119.7,2118.6,3.7781058]
[1772718177910,2.66738144,2119.7,2118.7,2.59808126]
[1772718179031,2.65325049,2119.9,2118.7,2.59808126]
[1772718179726,2.65325049,2119.9,2118.8,3.77799441]
[1772718180119,2.66738144,2120.0,2118.9,2.59808126]
[1772718180460,2.66738144,2120.0,2118.8,1.17991315]
[1772718180461,2.66738144,2119.9,2118.8,1.17991315]
[1772718180624,1.17925098,2120.0,2118.8,1.17991315]
[1772718180625,2.66738144,2119.7,2118.8,1.17991315]
[1772718181210,8.6089378,2120.2,2118.8,1.17991315]
[1772718181211,2.66738144,2120.3,2118.9,2.59808126]
[1772718181841,2.66738144,2120.1,2119.0,1.17980179]
[1772718182538,4.11038144,2120.0,2119.0,1.17980179]
[1772718183819,3.84668235,2119.9,2119.0,1.17980179]
[1772718184337,2.66738144,2119.8,2119.0,1.17980179]
[1772718184725,2.66738144,2119.8,2118.8,4.71954527]
[1772718184929,2.66738144,2119.8,2118.8,1.17991315]
[1772718185128,2.66738144,2119.8,2118.7,1.18104968]
[1772718186021,1.17941218,2119.7,2118.7,2.59918126]
[1772718186640,3.84679362,2119.7,2118.7,2.59918126]
[1772718187535,3.84679362,2119.7,2118.7,0.0011]
[1772718187536,2.66738144,2119.6,2118.7,0.0011]
[1772718188941,2.66738144,2119.4,2118.7,0.0011]
[1772718189240,1.17952347,2119.5,2118.7,0.0011]
[1772718189241,2.66738144,2119.2,2118.7,0.0011]
[1772718190927,1.17974611,2119.1,2118.7,0.0011]
[1772718191129,3.84710953,2119.2,2118.7,0.0011]
[1772718191619,5.28810953,2119.2,2118.7,0.0011]
[1772718192545,2.62072809,2119.2,2118.7,0.0011]
[1772718194050,2.66738144,2119.1,2118.9,0.0011]
[1772718194345,2.66738144,2119.1,2118.3,0.0011]
[1772718195351,2.66738144,2118.9,2118.3,0.0011]
[1772718195647,1.17980179,2119.0,2118.3,0.0011]
[1772718195835,1.44,2119.0,2118.3,2.59918126]
[1772718197040,3.846911,2119.5,2118.3,2.59918126]
[1772718197228,3.84701622,2119.3,2118.5,2.59808126]
[1772718197744,2.66738144,2119.3,2118.5,2.59808126]
[1772718198946,3.94708804,2119.6,2118.5,2.59808126]
[1772718199156,4.20661443,2119.5,2118.5,2.59808126]
[1772718199753,2.76661443,2119.3,2118.5,1.18003539]
[1772718199951,2.76661443,2119.3,2118.3,1.18124671]
[1772718200131,2.76661443,2119.3,2118.3,3.96446162]
[1772718201762,2.61969044,2119.2,2118.5,3.96329515]
[1772718201929,1.44,2119.1,2118.5,1.18008024]
[1772718202253,1.44,2119.1,2118.4,2.78321491]
[1772718203753,1.44,2119.0,2118.5,3.96329515]
[1772718205052,3.9462834,2119.3,2118.5,3.96329515]
[1772718205261,1.439,2119.2,2118.5,3.96329515]
[1772718207430,2.76661443,2119.3,2118.5,3.96329515]
[1772718207651,1.439,2119.2,2118.6,2.67413769]
[1772718207858,2.50564863,2119.4,2118.6,2.67523769]
[1772718208058,2.50664863,2119.3,2118.6,2.67523769]
[1772718208366,2.50664863,2119.3,2118.6,0.0011]
[1772718208932,3.68631514,2119.3,2118.6,0.0011]
[1772718209735,2.50564863,2119.2,2118.6,0.0011]
[1772718212571,1.17974611,2119.1,2118.6,0.0011]
[1772718212734,3.68539474,2119.1,2118.6,0.0011]
[1772718214138,1.438,2119.0,2118.6,0.0011]
[1772718215490,2.61781165,2119.0,2118.6,0.0011]
[1772718216806,1.438,2119.0,2118.6,0.0011]
[1772718217103,2.61780687,2119.0,2118.6,0.0011]
[1772718217796,1.17980687,2119.0,2118.6,0.0011]
[1772718218040,1.438,2118.9,2118.6,0.0011]
[1772718218493,2.50564863,2118.8,2118.3,0.0011]
[1772718219090,3.68561747,2118.7,2118.3,0.0011]
[1772718220204,5.89580773,2119.3,2118.3,2.67523769]
[1772718220364,2.77183803,2119.2,2118.3,2.67523769]
[1772718220570,1.438,2119.1,2118.3,2.67523769]
[1772718221804,1.438,2119.0,2118.6,0.0011]
[1772718222205,0.001,2118.8,2118.6,0.0011]
[1772718226109,0.001,2118.8,2118.6,2.67523769]
[1772718226408,1.438,2119.1,2118.6,2.67523769]
[1772718227082,4.71827997,2119.5,2118.6,2.67523769]
[1772718227083,1.438,2119.3,2118.6,2.67523769]
[1772718228498,1.438,2119.3,2118.8,2.67413769]
[1772718230409,1.438,2119.3,2118.7,1.17996884]
[1772718230710,1.438,2119.3,2118.6,3.70811079]
[1772718230711,2.64122551,2119.2,2118.6,3.70811079]
[1772718231215,2.61765775,2119.3,2118.7,2.52703166]
[1772718231789,2.61765775,2119.3,2118.6,1.18107913]
[1772718231790,5.25888326,2119.3,2118.6,3.70811079]
[1772718232185,5.25888326,2119.3,2118.6,1.18107913]
[1772718232490,2.61765775,2119.3,2118.7,2.52703166]
[1772718232703,5.25888326,2119.3,2118.7,2.52703166]
[1772718233382,5.25888326,2119.3,2118.6,1.18110055]
[1772718233812,2.64122551,2119.2,2118.6,0.0011]
[1772718234705,2.64122551,2119.0,2118.6,0.0011]
[1772718237192,2.64122551,2118.8,2118.6,0.0011]
[1772718237419,1.439,2118.7,2118.6,0.0011]
[1772718239124,2.61896884,2118.7,2118.6,0.0011]
[1772718240701,1.44,2118.7,2118.6,0.0011]